Cogmind - Beta 15 @@@ ROGUE MODE // 2025.09.15 @ 22:23:12 Player: cottonman132 Result: Self-destructed Performance ------------- Evolutions (1) 500 Regions Visited (3) 600 Robots Destroyed (0) 0 Value Destroyed (10) 10 Prototype IDs (0) 0 Alien Tech Used (0) 0 Bonus (299) 299 TOTAL SCORE: 1409 Bonus ------- Pacifist 200 Follower Combat Kills 99 Cogmind --------- Core Integrity 305/400 Matter 300/300 Energy 125/125 System Corruption 0% Temperature Cool (0) Movement Core (400) Ox7 Location -9/Materials Parts ------- > --- POWER (1) -------- Light Ion Engine > --- PROPULSION (3) --- (None) > --- UTILITY (3) ------ Large Storage Unit > --- WEAPON (2) ------- (None) > --- INVENTORY (15) --- Improved Ion Engine High-capacity Storage Unit Faulty Experimental Sensor Array Light Armor Plating Assault Rifle Light Assault Rifle Peak State ------------ > --- POWER ------------ Light Ion Engine > --- PROPULSION ------- Aluminum Leg Aluminum Leg > --- UTILITY ---------- Medium Storage Unit > --- WEAPON ----------- Datajack > --- INVENTORY -------- High-capacity Storage Unit Experimental Sensor Array Assault Rifle Light Assault Rifle [Rating: 6] Favorites ----------- Power Light Ion Engine Engine Light Ion Engine Propulsion Aluminum Leg Leg Aluminum Leg Wheel Wheel Hover Unit Hover Unit Utility Small Storage Unit Storage Small Storage Unit Weapon Datajack Special Melee Weapon Datajack Build | -11 -10 -10 -9 ------- Run | Yrd Mat Min Mat Slots Evolved 2 | . . . 2 Power . | . . . . Propulsion 1 | . . . 1 Utility 1 | . . . 1 Weapon . | . . . . Parts Attached 12 | 4 5 2 1 Power 2 | 1 1 . . Engine 2 | 1 1 . . Core . | . . . . Reactor . | . . . . Propulsion 6 | 2 4 . . Treads . | . . . . Leg 2 | . 2 . . Wheel 2 | 2 . . . Hover 2 | . 2 . . Flight . | . . . . Utility 3 | 1 . 1 1 Device . | . . . . Storage 3 | 1 . 1 1 Processor . | . . . . Hackware . | . . . . Protection . | . . . . Artifact . | . . . . Weapon 1 | . . 1 . Energy Gun . | . . . . Energy Cannon . | . . . . Ballistic Gun . | . . . . Ballistic Cannon . | . . . . Launcher . | . . . . Special Weapon . | . . . . Impact Weapon . | . . . . Slashing Weapon . | . . . . Piercing Weapon . | . . . . Special Melee Weapon 1 | . . 1 . Unidentified Prototypes . | . . . . Parts Lost 6 | . 3 . 3 Power 1 | . 1 . . Propulsion 4 | . 2 . 2 Utility . | . . . . Weapon 1 | . . . 1 Highest Loss Streak 2 | . 2 . 2 To Critical Strikes . | . . . . Average Backups 4 | 3 6 3 4 Power . | 1 . . . Propulsion 1 | 1 3 . . Utility 1 | . . 1 2 Weapon 2 | 1 2 2 2 Tool/Special . | . . . . Unused Backups 7 | . 1 . 6 Power 1 | . . . 1 Propulsion . | . . . . Utility 3 | . . . 3 Weapon 3 | . 1 . 2 Tool/Special . | . . . . Average Slot Usage (%) 59 | . 54 69 52 Engine 12 | . 13 14 11 Leg 18 | . 4 28 21 Wheel 1 | . 6 . . Hover 5 | . 15 . . Storage 13 | . 14 14 11 Special Melee Weapon 7 | . . 12 9 Peak Build Rating 6 | 4 4 6 6 Average Rating 4 | 2 3 5 5 On Entrance 3 | . 4 4 6 Naked Turns . | . . . . Heaviest Build 24 | 8 8 14 24 Greatest Support 20 | 20 20 20 20 Greatest Overweight (x) 7 | . 1 . 7 Average Overweight (x) . | . . . 1 Largest Inventory Capacity 15 | 8 8 10 15 Average Capacity 10 | 6 8 9 14 Most Carried 8 | 6 8 4 6 Average Carried 4 | 4 7 3 4 Final Capacity 15 | 8 8 10 15 Final Carried 6 | 6 3 4 6 Class Distribution -------------------- 100% | Mutant Dominant Class ---------------- Mutant | -10/Materials Mutant | -10/Mines Mutant | -9/Materials Resources | -11 -10 -10 -9 ----------- Run | Yrd Mat Min Mat Matter Collected 318 | 134 . 174 10 Remotely . | . . . . Salvage Created . | . . . . Parts . | . . . . Haulers Intercepted . | . . . . Recyclers Shooed . | . . . . Parts Field Recycled . | . . . . Retrieved Matter . | . . . . Parts Self-Destructed . | . . . . Prevented . | . . . . Kills | -11 -10 -10 -9 ------- Run | Yrd Mat Min Mat Combat Hostiles Destroyed . | . . . . Classes Destroyed . | . . . . Best Kill Streak . | . . . . Combat Bots Only . | . . . . Max Kills in Single Turn . | . . . . Gunslinging . | . . . . Exploded . | . . . . Melee . | . . . . Uniques/NPCs Destroyed . | . . . . Combat | -11 -10 -10 -9 -------- Run | Yrd Mat Min Mat Hostile Shots Fired 79 | . 34 . 45 Missed 24 | . 11 . 13 Hits 55 | . 23 . 32 Projectile 55 | . 23 . 32 AOE 1 | . . . 1 Critical Strikes 1 | . 1 . . Damage Taken 607 | . 304 . 303 Core 167 | . 72 . 95 Absorbed by Shields . | . . . . Core Remaining (%) 85 | 100 . 71 . Volleys Fired . | . . . . Largest . | . . . . Hottest . | . . . . Shots Fired . | . . . . Gun . | . . . . Cannon . | . . . . Launcher . | . . . . Special . | . . . . Kinetic . | . . . . Thermal . | . . . . Explosive . | . . . . Electromagnetic . | . . . . Robot Hit Streak . | . . . . Robot Miss Streak . | . . . . Penetration Max . | . . . . Secondary Targets . | . . . . Shots Hit Robots 13 | . . 11 2 Core Hits 1 | . . 1 . Critical Kills . | . . . . Critical Parts Destroyed . | . . . . Critical Strikes . | . . . . Melee Attacks 13 | . . 11 2 Impact . | . . . . Slashing . | . . . . Piercing . | . . . . Sneak Attacks 12 | . . 11 1 Combat Hostiles . | . . . . Follow-up Attacks . | . . . . Damage Inflicted 14 | . 11 3 . Guns . | . . . . Cannons . | . . . . Explosions . | . . . . Melee . | . . . . Ramming 14 | . 11 3 . Kinetic . | . . . . Thermal . | . . . . Explosive . | . . . . Electromagnetic . | . . . . Impact . | . . . . Slashing . | . . . . Piercing . | . . . . Highest Corruption . | . . . . Average Corruption . | . . . . Corruption Purged . | . . . . Corruption Blocked . | . . . . Overload Shots . | . . . . Overflow Damage . | . . . . Projectiles . | . . . . Explosions . | . . . . Melee . | . . . . Knockbacks . | . . . . Impact . | . . . . Kinetic . | . . . . Secondary . | . . . . Self-Inflicted Damage 5 | . 5 . . Shots . | . . . . Rammed 1 | . 1 . . Targets Rammed 3 | . 2 1 . Kicked 2 | . 1 1 . Crushed . | . . . . Highest Temperature 10 | . 10 . . Average Temperature 10 | . 10 . . Received Heat Transfer 189 | . 189 . . Siege Activations . | . . . . Martial Activations . | . . . . Shielding Activations . | . . . . Robots Disrupted . | . . . . Combat Hostiles . | . . . . Robots Corrupted . | . . . . Combat Hostiles . | . . . . Parts Fried . | . . . . Impact Corruptions . | . . . . Robots Melted . | . . . . Combat Hostiles . | . . . . Parts Melted . | . . . . Heat Transferred . | . . . . Parts Sabotaged . | . . . . Parts Stolen . | . . . . Parts Stripped . | . . . . Power Chain Reactions . | . . . . Alert | -11 -10 -10 -9 ------- Run | Yrd Mat Min Mat Maximum Alert Level . | . . . . Low Security (%) 100 | 100 100 100 100 Level 1 . | . . . . Level 2 . | . . . . Level 3 . | . . . . Level 4 . | . . . . Level 5 . | . . . . High Security . | . . . . Max Security . | . . . . Peak Influence 66 | . 66 1 58 Initial 1 | . . 1 . Average 8 | . 13 . 13 Influence Increases 198 | . 81 . 117 Destroy 0b10 Robot/C 60 | . . . 60 Destroy Leader 30 | . . . 30 Allied During Kill 12 | . . . 12 Successful Hack 6 | . 6 . . Disable Machine 15 | . . . 15 Lose Combat Pursuer 75 | . 75 . . Influence Decreases 198 | . 76 5 117 Entered New Map 4 | . . 4 . Time Decay 145 | . 70 1 74 Lost Part 9 | . 6 . 3 Lost Ally 40 | . . . 40 Squads Dispatched 3 | . 3 . . Investigation 1 | . 1 . . Extermination . | . . . . Reinforcement 2 | . 2 . . Assault . | . . . . Garrison . | . . . . Intercept . | . . . . Searches Triggered . | . . . . Construction Impeded . | . . . . Haulers Reinforced . | . . . . Active Scanning Responses . | . . . . Cargo Convoy Interrupts . | . . . . Stealth | -11 -10 -10 -9 --------- Run | Yrd Mat Min Mat Distress Signals 3 | . 3 . . Communications Jammed . | . . . . Distress Signals . | . . . . Times Spotted 20 | . 15 . 5 Peak Tracking Total 9 | . 9 . 3 Tactical Retreats 2 | . 2 . . Traps | -11 -10 -10 -9 ------- Run | Yrd Mat Min Mat Traps Triggered 1 | . 1 . . Indirectly . | . . . . Trap Hack Attempts . | . . . . Triggered . | . . . . Disarmed . | . . . . Reprogrammed . | . . . . Reused . | . . . . Traps Extracted . | . . . . Installed . | . . . . Triggered . | . . . . Machines | -11 -10 -10 -9 ---------- Run | Yrd Mat Min Mat Machines Disabled 1 | . . . 1 Max in Single Turn . | . . . . Machines Repaired . | . . . . Machines Dismantled . | . . . . Machines Sabotaged . | . . . . Overloaded Fab Kills . | . . . . Hacking | -11 -10 -10 -9 --------- Run | Yrd Mat Min Mat Machines Accessed 5 | . 4 . 1 Terminals 2 | . 2 . . Fabricators . | . . . . Repair Stations . | . . . . Recycling Units 3 | . 2 . 1 Scanalyzers . | . . . . Garrison Access . | . . . . Total Hacks 7 | . 5 . 2 Successful 5 | . 3 . 2 Failed 2 | . 2 . . Catastrophic . | . . . . Database Lockouts . | . . . . Manual 1 | . 1 . . Terminals 3 | . 3 . . Fabricators . | . . . . Repair Stations . | . . . . Recycling Units 4 | . 2 . 2 Scanalyzers . | . . . . Garrison Access . | . . . . Terminal Hacks 1 | . 1 . . Terminal Index 1 | . 1 . . Fabricator Hacks . | . . . . Repair Station Hacks . | . . . . Recycling Unit Hacks 4 | . 2 . 2 Report Inventory 3 | . 2 . 1 Retrieve Matter 1 | . . . 1 Scanalyzer . | . . . . Garrison Access Hacks . | . . . . Unauthorized Hacks . | . . . . Terminals . | . . . . Fabricators . | . . . . Repair Stations . | . . . . Recycling Units . | . . . . Scanalyzers . | . . . . Garrison Access . | . . . . Data Cores Recovered . | . . . . Used . | . . . . Hacking Detections 2 | . 1 . 1 Full Trace Events . | . . . . Feedback Events . | . . . . Feedback Blocked . | . . . . Robot Schematics Acquired . | . . . . Robots Built . | . . . . Authchips . | . . . . Time . | . . . . Total Robot Build Rating . | . . . . Part Schematics Acquired . | . . . . Parts Built . | . . . . Authchips . | . . . . Time . | . . . . Total Part Build Rating . | . . . . Parts Repaired . | . . . . Time . | . . . . Parts Recycled . | . . . . Recycled Matter . | . . . . Retrieved Matter . | . . . . Retrieved Components . | . . . . Parts Scanalyzed . | . . . . Part Schematics Acquired . | . . . . Parts Damaged . | . . . . Bothacking | -11 -10 -10 -9 ------------ Run | Yrd Mat Min Mat Used RIF Installer . | . . . . Robots Hacked 5 | . . 4 1 Non-combat 4 | . . 4 . Combat 1 | . . . 1 Robot Hacks Applied 6 | . . 5 1 parse_system 5 | . . 4 1 no_distress 1 | . . 1 . Relay Couplers Released . | . . . . Fabnet Peak Effective % . | . . . . Robots Rewired . | . . . . Allies Hacked . | . . . . Hacks Repelled . | . . . . Allies | -11 -10 -10 -9 -------- Run | Yrd Mat Min Mat Total Allies 2 | . . 2 . Largest Group 2 | . . 2 2 Highest-Rated Group 39 | . . 39 39 Highest-Rated Ally 31 | . . 31 31 Total Orders . | . . . . Ally Attacks 12 | . . . 12 Total Damage 206 | . . . 206 Kills 3 | . . . 3 Allies Corrupted . | . . . . Allies Melted . | . . . . Intel | -11 -10 -10 -9 ------- Run | Yrd Mat Min Mat Active Infowar (turns) . | . . . . Robot Analysis Total . | . . . . Derelict Logs Recovered . | . . . . Drone Launches . | . . . . Drone Recoveries . | . . . . Exploration | -11 -10 -10 -9 ------------- Run | Yrd Mat Min Mat Turns Passed 1026 | 48 315 339 324 Spaces Moved 899 | 53 422 264 160 Core 25 | 24 . . 1 Treads . | . . . . Legs 463 | . 40 264 159 Wheels 109 | 29 80 . . Hover 302 | . 302 . . Flight . | . . . . Fastest Speed 50 | 50 56 120 120 Average Speed 107 | 66 71 120 194 Slowest Speed 400 | 80 120 120 400 Overloaded Moves . | . . . . Propulsion Burnouts . | . . . . Robots Hopped . | . . . . Potential Cave-ins . | . . . . Cave-ins Triggered . | . . . . Exploration Rate (%) 39 | 3 76 61 19 Regions Visited 3 Branch Regions 1 Pre-discovered Areas . | . . . . Known Exits Taken . | . . . . Unknown Exits Taken 3 | 1 1 1 . Scrap Searched 1 | . . 1 . Spaces Dug . | . . . . Terrain Destroyed . | . . . . Melee . | . . . . Projectile . | . . . . AOE . | . . . . Terrain Rammed . | . . . . Walls Destroyed . | . . . . Machines Disabled . | . . . . Actions | -11 -10 -10 -9 --------- Run | Yrd Mat Min Mat Total 953 | 64 436 281 172 Wait 5 | . . . 5 Move 896 | 52 421 263 160 Hop . | . . . . Pick Up 17 | 8 3 3 3 Fast Attach 2 | 2 . . . Attach 8 | 2 4 2 . Detach . | . . . . Swap 4 | . 3 . 1 Drop 5 | . 3 1 1 Fire . | . . . . Melee 13 | . . 11 2 Ram 1 | . 1 . . Kick 2 | . 1 1 . Crush . | . . . . Escape Stasis . | . . . . Rewire . | . . . . Trap . | . . . . Miscellaneous . | . . . . Route ------- -11/Scrapyard -10/Materials (discovered 3 exits: *Mat x2 / [*Min]) -10/Mines -9/Materials (discovered 1 exit: [*Min]) History --------- Turn | Location | Event 5 | -11/Scrapyard | Discovered new exit (range 16) 49 | -11/Scrapyard | Entered Materials 124 | -10/Materials | Discovered new exit (range 3) 148 | -10/Materials | Discovered new exit (range 5) 172 | -10/Materials | Discovered new exit (range 3) 301 | -10/Materials | Build established: Mutant 364 | -10/Materials | Entered Mines 498 | -10/Mines | Found a damaged Exp. Sensor Array with a note attached 500 | -10/Mines | Found Prototype Device 686 | -10/Mines | Discovered new exit (range 7) 703 | -10/Mines | Entered Materials 703 | -9/Materials | Accompanied by 2 allies 703 | -9/Materials | Evolved 2 slots: Propulsion x1, Utility x1 703 | -9/Materials | Discovered new exit (range 15) 708 | -9/Materials | Led the pair of lost Derelicts to an unsafe place 1027 | -9/Materials | Self-destructed Last Messages --------------- 00885_ Jacked K-01 Serf... 00936_ Acquired Lgt. Armor Plating. 00938_ Acquired Imp. Ion Engine. 00958_ 5X-CPZ(g) destroyed. 00974_ Jacked S-10 Pest... >>parse_system Reading system data... 00980_ Datajack destroyed. 00991_ Aluminum Leg destroyed. 00997_ Neutrino Reactor explodes. 00997_ Scanalyzer disabled. 00997_ S-10 Pest destroyed. 00997_ Door malfunctions. 00997_ S-10 Pest destroyed. 00999_ S-10 Pest misfires. 01016_ U-05 Engineer builds a Door. 01021_ U-05 Engineer lays Concrete. 01023_ Aluminum Leg destroyed. 01023_ U-05 Engineer lays Concrete. 01026_ S-10 Pest misfires. Map ----- +----------------------------------------------------+ | ??????????????????????????#### ##### #?? | | ??????????????????????????# =%=! # ### | | ??????????????????????????# "" [ + | | ??????????????????????????# "Y # | | ??????????????"? ?????????# "" ![[# | | ??????????????"" #????????# ![ # | | ?????????????""" ?????????# """ ![ # ### | | ?????????????"" ??????????# """ # #?? | | ??####?????? ???????????# """ !# #?? | | ??#!! ???###+###??????????# # #?? | | ??#!! ???# [%= ######?????########## #?? | | ??#// #### !! !%################ #?? | | ??#// [ [!%=[ + # #?? | | ??#== ## [=###### """ """ # #?? | | ??#== ## ##+#+#????# """ """ # #?? | | ??##### #### ### ?????# """ """ # #?? | | ??????# #??# #??""" ???# + #?? | | ??????# #??# #??""" ??# # #?? | | ??????# #??# #??""" ! ## # #?? | | ??????# #??# #?# ## # #?? | | ??????# #??# #?# ############ #?? | | ??????# #??# ############??????????# #?? | | #######/##?# # #???????????# #?? | | # %=### # #???????????+ #?? | | # # # #???????????# #?? | | # *%# s @ #???????????+ #?? | | # # # #???????????# ?? | | # / # #???????????##+##?? | | # ! # # #?????????????????? | | # # # #?????????????????? | | # # ###########?????????????????? | | # "" # ??????????????????????????? | | ########## ?????????????????????????? | | ?????????# ????????????????????????? | | ?????????#########???????????????????????? | | ?????????????????????????????????????????? | | ?????????????????????????????????????????? | | ?????????????????????????????????????????? | | ?????????????????????????????????????????? | | ?????????????????????????????????????????? | | ?????????????????????????????????????????? | | ?????????????????????????????????????????? | | ?????????????????????????????????????????? | | ?????????????????????????????????????????? | | ?????????????????????????????????????????? | | ?????????????????????????????????????????? | | ?????????????????????????????????????????? | | ?????????????????????????????????????????? | | ?????????????????????????????????????????? | | ?????????????????????????????????????????? | +----------------------------------------------------+ Best States ------------- Heat Dissipation 28 Energy Generation 10 Energy Capacity 125 Matter Stores 300 Matter Capacity 300 Sight Range 16 Terrain Scan Density 10 Evasion (%) 55 Item Schematics ----------------- None Robot Schematics ------------------ None Fabricated ------------ Nothing Repaired ---------- Nothing Alien Tech Used ----------------- None Achievements -------------- None Challenges ------------ None Game ------ Seed NetworkConceptPropulsion Manual? 0 Play Time 00:12:56 Cumulative 9.8 hours Start 2025.09.15 @ 22:12:30 End 2025.09.15 @ 22:23:12 Sessions 1 Manual Loads 0 Difficulty Rogue Special Mode None Game No. 30 Rogue 30 Adventurer 0 Explorer 0 Win Type - Total 0 Types 0/0/0/0/0/0/0/0/0/0 Lore% 19 Gallery% 10 Achievement% 15 Wizard Run 0 Options --------- Layout 2 ASCII 0 Keyboard 0 Movement Mouse Keybinds 0 Fullscreen 1 Font 24/Smallcaps Map View 50x44 Zoom Use 0% Tactical HUD 1 Map Filters NONE Filters NONE Steam 1 RUN: 1699d77a-03b0-43d5-abb2-ccb81f6f660f